[Event "Championnat du monde jeunes U10"]
[Date "2024.11.23"]
[White "Seo, Juwon"]
[Black "Guirado Lara, Pablo"]
[WhiteElo "1721"]
[BlackElo "1832"]
[Round "8.18"]
[Result "1-0"]
[TimeControl "5400+30"]

1. e4 {[%clk 1:30:58]} 1... c5 {[%clk 1:30:57]} 2. Nf3 {[%clk 1:31:16]} 2... e6
{[%clk 1:31:23]} 3. d4 {[%clk 1:31:37]} 3... cxd4 {[%clk 1:31:52]} 4. Nxd4
{[%clk 1:31:56]} 4... Nf6 {[%clk 1:32:12]} 5. Nc3 {[%clk 1:32:19]} 5... Nc6
{[%clk 1:32:32]} 6. Nxc6 {[%clk 1:32:42]} 6... bxc6 {[%clk 1:32:52]} 7. e5
{[%clk 1:33:07]} 7... Nd5 {[%clk 1:33:18]} 8. Ne4 {[%clk 1:33:27]} 8... Bb7
{[%clk 1:33:38]} 9. Be2 {[%clk 1:33:42]} 9... Be7 {[%clk 1:26:19]} 10. O-O
{[%clk 1:28:36]} 10... O-O {[%clk 1:19:49]} 11. Nd6 {[%clk 1:25:03]} 11... Qc7
{[%clk 1:10:16]} 12. c4 {[%clk 1:11:49]} 12... Nb6 {[%clk 1:05:08]} 13. Be3
{[%clk 1:10:45]} 13... f6 {[%clk 0:43:13]} 14. Bc5 {[%clk 1:02:42]} 14... Nc8
{[%clk 0:35:00]} 15. f4 {[%clk 0:59:25]} 15... Bxd6 {[%clk 0:29:58]} 16. exd6
{[%clk 0:58:59]} 16... Qd8 {[%clk 0:29:10]} 17. Qd2 {[%clk 0:56:29]} 17... a5
{[%clk 0:26:51]} 18. b3 {[%clk 0:51:25]} 18... Nb6 {[%clk 0:15:59]} 19. Rf3
{[%clk 0:48:47]} 19... Re8 {[%clk 0:14:18]} 20. Rg3 {[%clk 0:42:41]} 20... Kh8
{[%clk 0:11:35]} 21. Qe3 {[%clk 0:39:08]} 21... Nc8 {[%clk 0:10:58]} 22. Rh3
{[%clk 0:38:08]} 22... g6 {[%clk 0:07:24]} 23. f5 {[%clk 0:28:44]} 23... g5
{[%clk 0:04:59]} 24. Bh5 {[%clk 0:27:02]} 24... Rg8 {[%clk 0:04:37]} 25. fxe6
{[%clk 0:26:18]} 25... dxe6 {[%clk 0:04:16]} 26. Qxe6 {[%clk 0:25:38]} 26... Nb6
{[%clk 0:03:51]} 27. Bd4 {[%clk 0:18:55]} 27... Nd7 {[%clk 0:02:56]} 28. Rf1
{[%clk 0:16:45]} 28... Bc8 {[%clk 0:01:55]} 29. Rxf6 {[%clk 0:16:09]} 29... Nxf6
{[%clk 0:02:18]} 30. Bxf6+ {[%clk 0:16:33]} 30... Rg7 {[%clk 0:02:43]} 31. Bxg7+
Kxg7 {[%clk 0:03:11]} 32. Qf7+ {[%clk 0:15:47]} 32... Kh8 {[%clk 0:03:29]} 33.
Bg6 {[%clk 0:15:46]} 33... Qb6+ {[%clk 0:03:54]} 34. Kh1 {[%clk 0:16:06]} 34...
Bxh3 {[%clk 0:04:17]} 35. Qxh7# {[%clk 0:16:32]} 1-0

[Variant "Standard"]
[Site "Europe Echecs"]

[Event "Championnat du monde jeunes U10"]
[Date "2024.11.23"]
[White "Otetileu, Amanbek"]
[Black "Perez Solanas, Hugo"]
[WhiteElo "1632"]
[BlackElo "1824"]
[Round "8.19"]
[Result "0-1"]
[TimeControl "5400+30"]

1. e4 {[%clk 1:30:58]} 1... c5 {[%clk 1:30:53]} 2. Nf3 {[%clk 1:31:17]} 2... d6
{[%clk 1:31:16]} 3. d4 {[%clk 1:31:43]} 3... cxd4 {[%clk 1:31:39]} 4. Nxd4
{[%clk 1:32:09]} 4... Nf6 {[%clk 1:31:58]} 5. Nc3 {[%clk 1:32:33]} 5... g6
{[%clk 1:32:21]} 6. Be3 {[%clk 1:32:45]} 6... Bg7 {[%clk 1:32:43]} 7. Bc4 {[%clk
1:32:59]} 7... O-O {[%clk 1:32:57]} 8. O-O {[%clk 1:33:24]} 8... Nc6 {[%clk
1:27:08]} 9. Bb3 {[%clk 1:32:24]} 9... Bd7 {[%clk 1:19:50]} 10. h3 {[%clk
1:29:30]} 10... Re8 {[%clk 1:12:25]} 11. Qd2 {[%clk 1:19:38]} 11... Nxd4 {[%clk
1:00:13]} 12. Bxd4 {[%clk 1:19:41]} 12... b5 {[%clk 1:00:17]} 13. e5 {[%clk
1:16:17]} 13... dxe5 {[%clk 0:59:58]} 14. Bxe5 {[%clk 1:16:36]} 14... b4 {[%clk
0:49:24]} 15. Bxf6 {[%clk 1:15:13]} 15... exf6 {[%clk 0:46:29]} 16. Nd5 {[%clk
1:15:13]} 16... a5 {[%clk 0:46:12]} 17. Rad1 {[%clk 1:14:31]} 17... Bc6 {[%clk
0:34:40]} 18. Qf4 {[%clk 1:13:29]} 18... Re5 {[%clk 0:29:39]} 19. Nxb4 {[%clk
1:13:16]} 19... Qe8 {[%clk 0:29:40]} 20. Nxc6 {[%clk 1:12:06]} 20... Qxc6 {[%clk
0:30:02]} 21. Rfe1 {[%clk 1:10:57]} 21... Qc7 {[%clk 0:29:28]} 22. Rxe5 {[%clk
1:11:01]} 22... fxe5 {[%clk 0:29:38]} 23. Qf3 {[%clk 1:10:53]} 23... Re8 {[%clk
0:29:30]} 24. Ba4 {[%clk 1:09:54]} 24... Rd8 {[%clk 0:29:28]} 25. Rxd8+ {[%clk
1:10:10]} 25... Qxd8 {[%clk 0:29:51]} 26. Bb3 {[%clk 1:10:22]} 26... Qe8 {[%clk
0:29:16]} 27. Qd5 {[%clk 1:10:14]} 27... e4 {[%clk 0:28:24]} 28. Qxa5 {[%clk
1:08:08]} 28... e3 {[%clk 0:24:10]} 29. Qe1 {[%clk 1:06:24]} 29... exf2+ {[%clk
0:24:27]} 30. Qxf2 {[%clk 1:06:36]} 30... Bxb2 {[%clk 0:24:38]} 31. c4 {[%clk
1:05:54]} 31... Qe5 {[%clk 0:24:25]} 32. Qf1 {[%clk 1:05:06]} 32... Bd4+ {[%clk
0:24:29]} 33. Kh1 {[%clk 1:05:30]} 33... Bc5 {[%clk 0:23:35]} 34. a4 {[%clk
1:04:31]} 34... Bd6 {[%clk 0:22:35]} 35. Qg1 {[%clk 1:04:55]} 35... Qc3 {[%clk
0:22:08]} 36. Bd1 {[%clk 1:04:13]} 36... Qxc4 {[%clk 0:21:54]} 37. Qe1 {[%clk
1:02:40]} 37... h5 {[%clk 0:20:29]} 38. Qg1 {[%clk 1:00:45]} 38... Kg7 {[%clk
0:19:35]} 39. a5 {[%clk 0:56:39]} 39... Qb5 {[%clk 0:19:00]} 40. Qd4+ {[%clk
0:55:30]} 40... Be5 {[%clk 0:19:21]} 41. Qb6 {[%clk 0:55:49]} 41... Qd3 {[%clk
0:19:05]} 42. Qg1 {[%clk 0:55:52]} 42... Bc3 {[%clk 0:18:20]} 43. Bb3 {[%clk
0:54:25]} 43... Qb5 {[%clk 0:12:07]} 44. Qb6 {[%clk 0:53:06]} 44... Qe5 {[%clk
0:11:47]} 45. a6 {[%clk 0:51:24]} 45... Bd4 {[%clk 0:12:09]} 46. Qb4 {[%clk
0:51:35]} 46... Qe3 {[%clk 0:12:25]} 47. Kh2 {[%clk 0:51:00]} 47... Be5+ {[%clk
0:12:43]} 48. Kh1 {[%clk 0:51:23]} 48... Qc1+ {[%clk 0:13:05]} 49. Bd1 {[%clk
0:51:32]} 49... Qxd1+ {[%clk 0:13:28]} 50. Qe1 {[%clk 0:51:59]} 50... Qxe1#
{[%clk 0:13:49]} 0-1

[Variant "Standard"]
[Site "Europe Echecs"]

[Event "Championnat du monde jeunes U10"]
[Date "2024.11.23"]
[White "Buklaho, Ignacy"]
[Black "Qian, Qipeng"]
[WhiteElo "1822"]
[BlackElo "1641"]
[Round "8.20"]
[Result "0-1"]
[TimeControl "5400+30"]

1. e4 {[%clk 1:30:53]} 1... e6 {[%clk 1:30:23]} 2. d4 {[%clk 1:31:02]} 2... d5
{[%clk 1:30:48]} 3. Nc3 {[%clk 1:31:04]} 3... Nf6 {[%clk 1:31:11]} 4. Bg5 {[%clk
1:30:51]} 4... dxe4 {[%clk 1:31:34]} 5. Nxe4 {[%clk 1:30:28]} 5... Nbd7 {[%clk
1:31:53]} 6. Bd3 {[%clk 1:28:07]} 6... h6 {[%clk 1:32:14]} 7. Nxf6+ {[%clk
1:27:37]} 7... Nxf6 {[%clk 1:32:16]} 8. Bh4 {[%clk 1:25:27]} 8... Be7 {[%clk
1:32:03]} 9. Nf3 {[%clk 1:25:26]} 9... O-O {[%clk 1:32:21]} 10. O-O {[%clk
1:25:46]} 10... b6 {[%clk 1:31:46]} 11. Bxf6 {[%clk 1:21:42]} 11... Bxf6 {[%clk
1:32:08]} 12. Be4 {[%clk 1:22:04]} 12... Rb8 {[%clk 1:31:12]} 13. Qe2 {[%clk
1:21:09]} 13... c5 {[%clk 1:29:38]} 14. c3 {[%clk 1:15:10]} 14... Qe7 {[%clk
1:29:03]} 15. Rad1 {[%clk 1:12:58]} 15... cxd4 {[%clk 1:27:00]} 16. Nxd4 {[%clk
1:13:01]} 16... Bb7 {[%clk 1:26:35]} 17. Rfe1 {[%clk 1:11:01]} 17... Rbd8 {[%clk
1:19:59]} 18. Bxb7 {[%clk 1:04:20]} 18... Qxb7 {[%clk 1:20:05]} 19. Nf3 {[%clk
1:03:13]} 19... Qc7 {[%clk 1:19:28]} 20. h3 {[%clk 1:01:41]} 20... Qc6 {[%clk
1:15:20]} 21. Qc2 {[%clk 0:58:09]} 21... Qc4 {[%clk 1:12:42]} 22. a3 {[%clk
0:57:47]} 22... b5 {[%clk 1:11:08]} 23. Nd2 {[%clk 0:50:28]} 23... Qc7 {[%clk
1:11:01]} 24. Ne4 {[%clk 0:49:37]} 24... Be7 {[%clk 1:11:20]} 25. Qe2 {[%clk
0:48:34]} 25... Qc6 {[%clk 1:11:21]} 26. Ng3 {[%clk 0:43:29]} 26... a5 {[%clk
1:03:05]} 27. Ne4 {[%clk 0:32:50]} 27... Qb6 {[%clk 0:53:04]} 28. Qf3 {[%clk
0:28:55]} 28... Rxd1 {[%clk 0:50:54]} 29. Rxd1 {[%clk 0:28:08]} 29... Rd8 {[%clk
0:51:09]} 30. Rd3 {[%clk 0:21:32]} 30... f5 {[%clk 0:48:41]} 31. Nd2 {[%clk
0:15:07]} 31... Bc5 {[%clk 0:47:53]} 32. Rxd8+ {[%clk 0:13:32]} 32... Qxd8
{[%clk 0:48:22]} 33. Nb3 {[%clk 0:13:21]} 33... Bb6 {[%clk 0:48:18]} 34. Qe2
{[%clk 0:08:59]} 34... Qd5 {[%clk 0:46:54]} 35. Nd4 {[%clk 0:08:13]} 35... Bxd4
{[%clk 0:46:59]} 36. cxd4 {[%clk 0:08:37]} 36... Kf7 {[%clk 0:47:04]} 37. Qe3
{[%clk 0:08:08]} 37... b4 {[%clk 0:46:27]} 38. axb4 {[%clk 0:07:42]} 38... axb4
{[%clk 0:46:56]} 39. Qf4 {[%clk 0:06:53]} 39... Qc4 {[%clk 0:46:26]} 40. Qd2
{[%clk 0:06:35]} 40... b3 {[%clk 0:46:39]} 41. Qd1 {[%clk 0:05:47]} 41... Kf6
{[%clk 0:46:33]} 42. g3 {[%clk 0:04:23]} 42... Qc2 {[%clk 0:45:53]} 43. Qa1
{[%clk 0:04:42]} 43... Kg6 {[%clk 0:46:08]} 44. Qa6 {[%clk 0:02:41]} 44... Kf6
{[%clk 0:46:16]} 45. Qa3 {[%clk 0:02:56]} 45... Qb1+ {[%clk 0:46:08]} 46. Kg2
{[%clk 0:02:42]} 46... Qe4+ {[%clk 0:46:34]} 47. Kg1 {[%clk 0:02:50]} 47... Qd5
{[%clk 0:46:59]} 48. Qb4 {[%clk 0:02:47]} 48... Kg6 {[%clk 0:47:18]} 49. Qc3
{[%clk 0:02:34]} 49... Kh7 {[%clk 0:47:38]} 50. Qb4 {[%clk 0:02:29]} 50... Qf3
{[%clk 0:46:54]} 51. Qc4 {[%clk 0:01:50]} 51... f4 {[%clk 0:45:19]} 52. gxf4
{[%clk 0:01:05]} 52... Qxh3 {[%clk 0:45:35]} 53. Qc1 {[%clk 0:00:52]} 53... Qd3
{[%clk 0:45:20]} 54. Qe1 {[%clk 0:00:48]} 54... Qf5 {[%clk 0:44:48]} 55. Qe2
{[%clk 0:00:42]} 55... Qb1+ {[%clk 0:44:39]} 56. Kg2 {[%clk 0:00:49]} 56... Qg6+
{[%clk 0:44:52]} 57. Kf1 {[%clk 0:00:55]} 57... Qf5 {[%clk 0:44:19]} 58. Kg2
{[%clk 0:00:52]} 58... Qd5+ {[%clk 0:44:45]} 59. f3 {[%clk 0:00:38]} 59... Qxd4
{[%clk 0:45:03]} 60. Qxe6 {[%clk 0:00:50]} 60... Qxb2+ {[%clk 0:45:31]} 61. Kg3
{[%clk 0:00:54]} 61... Qb1 {[%clk 0:43:31]} 62. f5 {[%clk 0:00:39]} 62... Qg1+
{[%clk 0:43:55]} 63. Kh3 {[%clk 0:00:48]} 63... b2 {[%clk 0:44:13]} 64. f6
{[%clk 0:01:05]} 64... b1=Q {[%clk 0:44:25]} 65. f7 {[%clk 0:00:59]} 65... Qbf1+
{[%clk 0:44:50]} 66. Kh4 {[%clk 0:01:23]} 66... Qff2+ {[%clk 0:45:15]} 67. Kh5
{[%clk 0:01:39]} 67... Qg5# {[%clk 0:45:39]} 0-1

[Variant "Standard"]
[Site "Europe Echecs"]

[Event "Championnat du monde jeunes U10"]
[Date "2024.11.23"]
[White "Babeikin, Kiryl"]
[Black "Dayal, Samar"]
[WhiteElo "1721"]
[BlackElo "1818"]
[Round "8.21"]
[Result "1/2-1/2"]
[TimeControl "5400+30"]

1. e4 {[%clk 1:30:58]} 1... c5 {[%clk 1:30:59]} 2. Nf3 {[%clk 1:31:21]} 2... d6
{[%clk 1:31:28]} 3. d4 {[%clk 1:31:42]} 3... cxd4 4. Nxd4 {[%clk 1:32:04]} 4...
Nf6 {[%clk 1:32:27]} 5. Nc3 {[%clk 1:32:27]} 5... g6 {[%clk 1:32:56]} 6. Be3
{[%clk 1:32:20]} 6... Bg7 {[%clk 1:32:36]} 7. Bc4 {[%clk 1:30:39]} 7... O-O
{[%clk 1:29:32]} 8. f3 {[%clk 1:30:58]} 8... Nc6 {[%clk 1:29:08]} 9. Qd2 {[%clk
1:28:47]} 9... Bd7 {[%clk 1:28:00]} 10. O-O-O {[%clk 1:26:51]} 10... Rc8 {[%clk
1:19:34]} 11. Bb3 {[%clk 1:27:08]} 11... Ne5 {[%clk 1:19:49]} 12. h4 {[%clk
1:22:36]} 12... Nc4 {[%clk 1:19:45]} 13. Bxc4 {[%clk 1:22:48]} 13... Rxc4 {[%clk
1:20:14]} 14. h5 {[%clk 1:19:35]} 14... Nxh5 {[%clk 1:20:42]} 15. g4 {[%clk
1:19:06]} 15... Nf6 {[%clk 1:21:11]} 16. e5 {[%clk 1:06:48]} 16... dxe5 {[%clk
1:15:38]} 17. Nb3 {[%clk 1:06:26]} 17... Qc7 {[%clk 1:04:21]} 18. g5 {[%clk
1:06:44]} 18... Bf5 {[%clk 1:04:40]} 19. gxf6 {[%clk 1:06:37]} 19... Bxf6 {[%clk
1:04:31]} 20. Na1 {[%clk 0:50:08]} 20... Rc8 {[%clk 0:47:36]} 21. Nd5 Qb8 22.
Rh2 {[%clk 0:28:07]} 22... h5 {[%clk 0:33:59]} 23. Nxf6+ {[%clk 0:24:37]} 23...
exf6 {[%clk 0:34:27]} 24. Qd6 {[%clk 0:24:55]} 24... Qxd6 {[%clk 0:29:56]} 25.
Rxd6 {[%clk 0:25:17]} 25... Kg7 {[%clk 0:30:26]} 26. Bxa7 {[%clk 0:24:16]} 26...
Ra8 {[%clk 0:22:59]} 27. Be3 {[%clk 0:20:51]} 27... Rxa2 {[%clk 0:23:24]} 28.
Nb3 {[%clk 0:21:15]} 28... Ra8 {[%clk 0:21:20]} 29. Rb6 {[%clk 0:15:50]} 29...
Rac8 {[%clk 0:10:21]} 30. c3 {[%clk 0:16:09]} 30... R4c7 31. Kd1 {[%clk
0:10:19]} 31... Be6 {[%clk 0:06:47]} 32. Na5 {[%clk 0:08:20]} 32... Bd5 {[%clk
0:07:11]} 33. Ke2 {[%clk 0:06:02]} 33... Rh8 {[%clk 0:03:08]} 34. Rd6 {[%clk
0:05:40]} 34... Be6 {[%clk 0:03:11]} 35. Bb6 {[%clk 0:06:01]} 35... Rd7 {[%clk
0:03:04]} 36. Rxd7 Bxd7 37. b4 {[%clk 0:05:28]} 37... f5 {[%clk 0:03:08]} 38.
Bc5 {[%clk 0:05:03]} 38... b5 {[%clk 0:02:30]} 39. Rh1 {[%clk 0:04:25]} 39... g5
{[%clk 0:02:17]} 40. Bd6 {[%clk 0:02:34]} 40... f6 {[%clk 0:01:37]} 41. Rd1
{[%clk 0:02:57]} 41... Be6 {[%clk 0:02:00]} 42. c4 {[%clk 0:03:08]} 42... g4
{[%clk 0:00:56]} 43. fxg4 {[%clk 0:02:42]} 43... hxg4 {[%clk 0:01:24]} 44. cxb5
{[%clk 0:03:03]} 44... Rh2+ {[%clk 0:01:18]} 45. Kd3 {[%clk 0:01:46]} 45... f4
{[%clk 0:01:10]} 46. b6 {[%clk 0:01:20]} 46... Bd5 {[%clk 0:00:38]} 47. b7
{[%clk 0:01:11]} 47... Rh3+ {[%clk 0:00:56]} 48. Kc2 {[%clk 0:01:30]} 48... Be4+
{[%clk 0:00:48]} 49. Kb2 {[%clk 0:00:47]} 49... Bxb7 {[%clk 0:00:59]} 50. Nxb7
{[%clk 0:01:12]} 50... g3 {[%clk 0:00:50]} 51. Bc5 {[%clk 0:01:27]} 51... f3
{[%clk 0:00:44]} 52. Nd6 {[%clk 0:01:42]} 52... Kg6 {[%clk 0:00:36]} 53. Rg1
{[%clk 0:00:40]} 53... f5 {[%clk 0:00:39]} 54. Bf2 {[%clk 0:00:43]} 54... f4
{[%clk 0:00:53]} 55. Ne4 {[%clk 0:00:37]} 55... Rh2 {[%clk 0:00:45]} 56. Kc3
{[%clk 0:00:48]} 56... g2 {[%clk 0:00:37]} 57. b5 {[%clk 0:00:43]} 57... Kf5
{[%clk 0:00:55]} 58. Nd6+ {[%clk 0:00:44]} 58... Ke6 {[%clk 0:01:01]} 59. Nc4
{[%clk 0:00:57]} 59... e4 {[%clk 0:00:35]} 60. b6 {[%clk 0:01:17]} 60... e3
{[%clk 0:00:36]} 61. Nxe3 {[%clk 0:01:40]} 61... fxe3 {[%clk 0:01:02]} 62. Bxe3
{[%clk 0:02:07]} 62... Rh7 {[%clk 0:00:34]} 63. Kd3 {[%clk 0:02:08]} 63... Kf5
{[%clk 0:01:02]} 64. Bf2 {[%clk 0:00:55]} 64... Kg4 {[%clk 0:00:35]} 65. Kc4
{[%clk 0:00:45]} 65... Re7 {[%clk 0:00:33]} 66. Kd5 {[%clk 0:00:37]} 66... Re2
{[%clk 0:00:58]} 67. b7 {[%clk 0:00:39]} 67... Rb2 {[%clk 0:00:38]} 68. Kc6
{[%clk 0:00:58]} 68... Kh3 {[%clk 0:00:46]} 69. Kc7 {[%clk 0:00:35]} 69... Rc2+
{[%clk 0:01:06]} 70. Kd6 {[%clk 0:00:32]} 70... Rd2+ {[%clk 0:00:39]} 71. Kc7
{[%clk 0:00:32]} 71... Rc2+ {[%clk 0:00:58]} 72. Kd6 {[%clk 0:00:37]} 72... Rb2
{[%clk 0:01:21]} 73. Kc7 {[%clk 0:00:37]} 73... Rc2+ {[%clk 0:01:25]} 74. Kd6
{[%clk 0:00:37]} 1/2-1/2

[Variant "Standard"]
[Site "Europe Echecs"]

[Event "Championnat du monde jeunes U10"]
[Date "2024.11.23"]
[White "Jani, Aakash"]
[Black "Aitmukhanov, Arsen"]
[WhiteElo "1810"]
[BlackElo "1579"]
[Round "8.22"]
[Result "1/2-1/2"]
[TimeControl "5400+30"]

1. e4 {[%clk 1:30:53]} 1... c5 {[%clk 1:30:53]} 2. Nf3 {[%clk 1:30:50]} 2... Nc6
{[%clk 1:31:17]} 3. d4 {[%clk 1:30:44]} 3... cxd4 {[%clk 1:31:42]} 4. Nxd4
{[%clk 1:30:28]} 4... Nf6 {[%clk 1:32:01]} 5. Nc3 {[%clk 1:29:37]} 5... e5
{[%clk 1:32:25]} 6. Ndb5 {[%clk 1:29:22]} 6... d6 {[%clk 1:32:45]} 7. Nd5 {[%clk
1:28:12]} 7... Nxd5 {[%clk 1:32:02]} 8. exd5 {[%clk 1:27:00]} 8... Nb8 {[%clk
1:32:28]} 9. c4 {[%clk 1:26:36]} 9... Be7 {[%clk 1:32:49]} 10. Be2 {[%clk
1:26:17]} 10... a6 {[%clk 1:33:08]} 11. Nc3 {[%clk 1:26:16]} 11... O-O {[%clk
1:33:27]} 12. O-O {[%clk 1:25:31]} 12... f5 {[%clk 1:33:49]} 13. f4 {[%clk
1:25:38]} 13... Bf6 {[%clk 1:34:08]} 14. Kh1 {[%clk 1:21:33]} 14... Nd7 {[%clk
1:32:41]} 15. Be3 {[%clk 1:20:45]} 15... exf4 {[%clk 1:32:09]} 16. Bxf4 {[%clk
1:21:05]} 16... Be5 {[%clk 1:32:10]} 17. Qc2 {[%clk 1:20:07]} 17... Qf6 {[%clk
1:22:18]} 18. Rad1 {[%clk 1:15:36]} 18... Bxf4 {[%clk 1:17:13]} 19. Rxf4 {[%clk
1:15:52]} 19... Ne5 {[%clk 1:11:02]} 20. Rdf1 {[%clk 1:14:39]} 20... Ng6 {[%clk
1:07:33]} 21. R4f2 {[%clk 1:13:19]} 21... f4 {[%clk 1:07:24]} 22. Bd3 {[%clk
1:09:16]} 22... Kh8 23. Ne2 {[%clk 1:05:11]} 23... Bg4 {[%clk 0:52:12]} 24. Bxg6
{[%clk 0:58:36]} 24... Qxg6 {[%clk 0:35:28]} 25. Qxg6 {[%clk 0:58:49]} 25...
hxg6 {[%clk 0:35:52]} 26. Nxf4 {[%clk 0:59:13]} 26... Rf6 {[%clk 0:35:29]} 27.
h3 {[%clk 0:58:52]} 27... Bf5 {[%clk 0:34:41]} 28. Nh5 {[%clk 0:55:04]} 28...
Rf7 {[%clk 0:32:39]} 29. Ng3 {[%clk 0:54:01]} 29... Raf8 {[%clk 0:33:00]} 30.
Ne4 {[%clk 0:51:31]} 30... Rd7 {[%clk 0:28:09]} 31. Ng3 {[%clk 0:51:44]} 31...
Rdf7 {[%clk 0:27:59]} 32. Kh2 {[%clk 0:52:08]} 32... Kg8 {[%clk 0:27:58]} 33.
Nxf5 {[%clk 0:51:54]} 33... gxf5 {[%clk 0:28:17]} 34. Re2 {[%clk 0:52:06]} 34...
Rc8 {[%clk 0:22:29]} 35. b3 {[%clk 0:50:51]} 35... b5 {[%clk 0:21:26]} 36. cxb5
{[%clk 0:51:01]} 36... axb5 {[%clk 0:21:52]} 37. Re6 {[%clk 0:51:22]} 37... Rc2
{[%clk 0:22:08]} 38. Rxd6 {[%clk 0:51:10]} 38... Rxa2 {[%clk 0:22:31]} 39. Rb6
{[%clk 0:51:34]} 39... f4 {[%clk 0:20:44]} 40. Kh1 {[%clk 0:50:31]} 40... Rf5
{[%clk 0:17:57]} 41. d6 {[%clk 0:49:31]} 41... Rd2 {[%clk 0:18:08]} 42. h4
{[%clk 0:38:28]} 42... g5 {[%clk 0:16:13]} 43. hxg5 {[%clk 0:35:13]} 43... Rxg5
{[%clk 0:16:30]} 44. Rxf4 {[%clk 0:35:20]} 44... Rgxg2 {[%clk 0:15:07]} 45. d7
{[%clk 0:35:35]} 45... Rh2+ {[%clk 0:14:39]} 46. Kg1 {[%clk 0:35:59]} 46...
Rhg2+ {[%clk 0:15:03]} 47. Kf1 {[%clk 0:36:19]} 47... Rh2 {[%clk 0:15:14]} 48.
Rb8+ {[%clk 0:32:06]} 48... Kh7 {[%clk 0:15:38]} 1/2-1/2

[Variant "Standard"]
[Site "Europe Echecs"]

[Event "Championnat du monde jeunes U10"]
[Date "2024.11.23"]
[White "Aguike, Toshiya"]
[Black "Chakhalov, Mikael"]
[WhiteElo "1716"]
[BlackElo "1962"]
[Round "8.23"]
[Result "1/2-1/2"]
[TimeControl "5400+30"]

1. e4 {[%clk 1:30:40]} 1... c5 {[%clk 1:30:44]} 2. Nf3 {[%clk 1:30:45]} 2... Nc6
{[%clk 1:31:10]} 3. d4 {[%clk 1:31:10]} 3... cxd4 {[%clk 1:31:34]} 4. Nxd4
{[%clk 1:31:27]} 4... Nf6 {[%clk 1:31:57]} 5. Nc3 {[%clk 1:31:48]} 5... d6
{[%clk 1:32:23]} 6. Be2 {[%clk 1:30:59]} 6... e5 {[%clk 1:32:28]} 7. Nf3 {[%clk
1:31:02]} 7... Be7 {[%clk 1:32:19]} 8. O-O {[%clk 1:31:22]} 8... O-O {[%clk
1:32:34]} 9. h3 {[%clk 1:29:15]} 9... h6 {[%clk 1:32:03]} 10. Be3 {[%clk
1:28:59]} 10... Be6 {[%clk 1:32:08]} 11. Qd2 {[%clk 1:24:25]} 11... d5 {[%clk
1:30:41]} 12. exd5 {[%clk 1:24:27]} 12... Nxd5 {[%clk 1:30:56]} 13. Nxd5 {[%clk
1:24:09]} 13... Qxd5 {[%clk 1:30:49]} 14. Qxd5 {[%clk 1:23:57]} 14... Bxd5
{[%clk 1:31:18]} 15. c3 {[%clk 1:24:00]} 15... Rfd8 {[%clk 1:30:16]} 16. Nd2
{[%clk 1:18:22]} 16... f5 {[%clk 1:17:41]} 17. Nb3 {[%clk 1:12:17]} 17... g5
{[%clk 1:13:17]} 18. f3 {[%clk 1:01:22]} 18... Bf6 {[%clk 1:08:30]} 19. Rad1
{[%clk 0:58:11]} 19... Bf7 {[%clk 1:04:19]} 20. Nc5 {[%clk 0:53:17]} 20... b6
{[%clk 1:02:27]} 21. Nb7 {[%clk 0:44:35]} 21... Rxd1 {[%clk 0:54:10]} 22. Rxd1
{[%clk 0:44:50]} 22... Ne7 {[%clk 0:54:08]} 23. c4 {[%clk 0:40:43]} 23... Rb8
{[%clk 0:40:22]} 24. Nd8 {[%clk 0:36:15]} 24... Be8 {[%clk 0:23:58]} 25. Rd6
{[%clk 0:27:20]} 25... Kg7 {[%clk 0:20:53]} 26. Ne6+ {[%clk 0:26:31]} 26... Kf7
{[%clk 0:20:30]} 27. Nd8+ {[%clk 0:23:09]} 27... Kg7 {[%clk 0:20:35]} 28. c5
{[%clk 0:21:31]} 28... bxc5 {[%clk 0:20:45]} 29. Ne6+ {[%clk 0:21:34]} 29... Kg6
{[%clk 0:19:59]} 30. Bxc5 {[%clk 0:19:33]} 30... Rxb2 {[%clk 0:18:23]} 31. Bc4
{[%clk 0:19:32]} 31... Bb5 {[%clk 0:16:46]} 32. Nf8+ {[%clk 0:17:31]} 32... Kg7
{[%clk 0:17:01]} 33. Ne6+ {[%clk 0:17:00]} 33... Kg6 {[%clk 0:17:12]} 34. Bb3
{[%clk 0:16:12]} 34... Rb1+ {[%clk 0:13:49]} 35. Kh2 {[%clk 0:16:07]} 35... e4
{[%clk 0:13:28]} 36. f4 {[%clk 0:16:24]} 36... gxf4 {[%clk 0:11:46]} 37. Nxf4+
{[%clk 0:13:10]} 37... Kg5 {[%clk 0:10:43]} 38. g3 {[%clk 0:07:17]} 38... Be5
{[%clk 0:05:33]} 39. h4+ {[%clk 0:07:26]} 39... Kg4 {[%clk 0:04:45]} 40. Bd1+
{[%clk 0:07:32]} 40... Rxd1 {[%clk 0:04:54]} 41. Rxd1 {[%clk 0:08:00]} 41...
Bxf4 {[%clk 0:05:01]} 42. gxf4 {[%clk 0:08:12]} 42... Nc6 {[%clk 0:04:42]} 43.
Bf2 {[%clk 0:06:09]} 43... Kxf4 {[%clk 0:03:42]} 44. Bg3+ {[%clk 0:06:15]} 44...
Kg4 {[%clk 0:03:33]} 45. Rd5 {[%clk 0:06:39]} 45... a6 {[%clk 0:03:53]} 46. Rd6
{[%clk 0:06:52]} 46... f4 {[%clk 0:03:39]} 47. Be1 {[%clk 0:07:16]} 47... Ne5
{[%clk 0:03:08]} 48. Bc3 {[%clk 0:06:33]} 48... Nf3+ {[%clk 0:02:47]} 49. Kh1
{[%clk 0:06:53]} 49... Nxh4 {[%clk 0:02:49]} 50. Rxh6 {[%clk 0:07:10]} 50... f3
{[%clk 0:02:38]} 51. Rxh4+ {[%clk 0:02:29]} 51... Kxh4 {[%clk 0:03:04]} 52. Bd4
{[%clk 0:02:48]} 52... Kg3 {[%clk 0:03:06]} 53. Kg1 {[%clk 0:03:07]} 53... a5
{[%clk 0:02:58]} 54. a3 {[%clk 0:03:26]} 54... a4 {[%clk 0:03:06]} 55. Be3
{[%clk 0:03:42]} 55... Bd3 {[%clk 0:03:28]} 56. Bd4 {[%clk 0:03:39]} 56... f2+
{[%clk 0:01:49]} 57. Bxf2+ {[%clk 0:04:02]} 57... Kf3 {[%clk 0:02:13]} 58. Be1
{[%clk 0:04:14]} 58... Ke2 {[%clk 0:02:01]} 59. Ba5 {[%clk 0:04:30]} 59... e3
{[%clk 0:02:15]} 60. Bb4 {[%clk 0:04:32]} 60... Kd1 {[%clk 0:02:18]} 61. Ba5
{[%clk 0:04:52]} 61... Kc2 {[%clk 0:02:15]} 62. Bb6 {[%clk 0:05:07]} 62... e2
{[%clk 0:02:10]} 63. Kf2 {[%clk 0:05:29]} 1/2-1/2

[Variant "Standard"]
[Site "Europe Echecs"]